[Event "Titled Tuesday Blitz June 20 Early 2023"]
[White "Degenbaev, Aziz"]
[Black "Grandelius, Nils"]
[WhiteFideId "13802640"]
[BlackFideId "1710400"]
[WhiteElo "2152"]
[BlackElo "2573"]
[Result "1/2-1/2"]
[Round "2"]
[TimeControl "180+2"]
[Date "2023.06.20"]
[WhiteClock "0:01:38"]
[BlackClock "0:01:40"]
[Board "35"]

1. e4 {[%clk 0:02:56]}  e5 {[%clk 0:03:00]} 2. Nf3 {[%clk 0:02:55]}  Nc6 {[%clk 0:03:00]} 3. d4 {[%clk 0:02:55]}  exd4 {[%clk 0:02:58]} 4. Nxd4 {[%clk 0:02:56]}  Qf6 {[%clk 0:02:57]} 5. Nf3 {[%clk 0:02:39]}  Bc5 {[%clk 0:02:56]} 6. Nc3 {[%clk 0:02:33]}  Nge7 {[%clk 0:02:52]} 7. Bg5 {[%clk 0:02:33]}  Qg6 {[%clk 0:02:51]} 8. Bd3 {[%clk 0:02:28]}  h6 {[%clk 0:02:36]} 9. e5 {[%clk 0:02:17]}  Qh5 {[%clk 0:02:32]} 10. Bxe7 {[%clk 0:02:12]}  Bxe7 {[%clk 0:02:33]} 11. Qe2 {[%clk 0:02:06]}  O-O {[%clk 0:02:24]} 12. Qe4 {[%clk 0:01:57]}  g6 {[%clk 0:02:14]} 13. g4 {[%clk 0:01:50]}  Qh3 {[%clk 0:02:14]} 14. Ng1 {[%clk 0:01:44]}  Qh4 {[%clk 0:01:44]} 15. Nf3 {[%clk 0:01:38]}  Qh3 {[%clk 0:01:40]} 16. Ng1 {[%clk 0:01:38]}  Qh4 {[%clk 0:01:40]} 17. Nf3 {[%clk 0:01:38]}  Qh3 {[%clk 0:01:40]} 1/2-1/2


[Site "https://www.chess.com"]

[Event "Titled Tuesday Blitz June 20 Early 2023"]
[White "Subelj, Jan"]
[Black "Ibarra Jerez, Jose Carlos"]
[WhiteFideId "14618583"]
[BlackFideId "2226332"]
[WhiteElo "2499"]
[BlackElo "2631"]
[Result "0-1"]
[Round "2"]
[TimeControl "180+2"]
[Date "2023.06.20"]
[WhiteClock "0:00:08"]
[BlackClock "0:00:13"]
[Board "36"]

1. e4 {[%clk 0:03:00]}  c5 {[%clk 0:02:58]} 2. Nf3 {[%clk 0:02:59]}  e6 {[%clk 0:02:59]} 3. c3 {[%clk 0:02:59]}  Nf6 {[%clk 0:02:59]} 4. Bd3 {[%clk 0:02:58]}  d5 {[%clk 0:02:56]} 5. e5 {[%clk 0:02:58]}  Nfd7 {[%clk 0:02:56]} 6. Bc2 {[%clk 0:02:55]}  c4 {[%clk 0:02:54]} 7. d4 {[%clk 0:02:47]}  cxd3 {[%clk 0:02:54]} 8. Qxd3 {[%clk 0:02:40]}  Nc6 {[%clk 0:02:53]} 9. Qe2 {[%clk 0:02:40]}  g6 {[%clk 0:02:36]} 10. O-O {[%clk 0:02:37]}  Bg7 {[%clk 0:02:36]} 11. Bf4 {[%clk 0:02:36]}  Qc7 {[%clk 0:02:37]} 12. Re1 {[%clk 0:02:35]}  O-O {[%clk 0:02:36]} 13. Nbd2 {[%clk 0:02:26]}  b6 {[%clk 0:02:35]} 14. Nb3 {[%clk 0:02:24]}  a5 {[%clk 0:02:35]} 15. Nbd4 {[%clk 0:02:23]}  Ba6 {[%clk 0:02:33]} 16. Qe3 {[%clk 0:02:17]}  Nxd4 {[%clk 0:02:23]} 17. Nxd4 {[%clk 0:02:18]}  b5 {[%clk 0:02:21]} 18. a4 {[%clk 0:01:28]}  b4 {[%clk 0:02:21]} 19. cxb4 {[%clk 0:01:28]}  axb4 {[%clk 0:02:19]} 20. Rac1 {[%clk 0:01:28]}  Nc5 {[%clk 0:02:07]} 21. Bb1 {[%clk 0:01:15]}  Qb6 {[%clk 0:01:48]} 22. a5 {[%clk 0:01:14]}  Qc7 {[%clk 0:01:32]} 23. Nb3 {[%clk 0:01:07]}  d4 {[%clk 0:01:32]} 24. Qg3 {[%clk 0:00:59]}  Bb5 {[%clk 0:00:58]} 25. Rxc5 {[%clk 0:00:57]}  Qd7 {[%clk 0:00:57]} 26. Rd1 {[%clk 0:00:41]}  d3 {[%clk 0:00:52]} 27. h4 {[%clk 0:00:37]}  Rfd8 {[%clk 0:00:45]} 28. Rd2 {[%clk 0:00:28]}  Bf8 {[%clk 0:00:44]} 29. Rc1 {[%clk 0:00:27]}  Qd5 {[%clk 0:00:44]} 30. Ba2 {[%clk 0:00:09]}  Bc4 {[%clk 0:00:44]} 31. Rxc4 {[%clk 0:00:08]}  Qxc4 {[%clk 0:00:45]} 32. h5 {[%clk 0:00:06]}  Rd5 {[%clk 0:00:37]} 33. hxg6 {[%clk 0:00:06]}  hxg6 {[%clk 0:00:37]} 34. Bg5 {[%clk 0:00:04]}  Rdxa5 {[%clk 0:00:18]} 35. Nxa5 {[%clk 0:00:02]}  Qxa2 {[%clk 0:00:19]} 36. Nc6 {[%clk 0:00:02]}  Qb1+ {[%clk 0:00:19]} 37. Kh2 {[%clk 0:00:02]}  Ra1 {[%clk 0:00:20]} 38. Kh3 {[%clk 0:00:02]}  Qh1+ {[%clk 0:00:19]} 39. Kg4 {[%clk 0:00:02]}  Rc1 {[%clk 0:00:13]} 40. Ne7+ {[%clk 0:00:02]}  Bxe7 {[%clk 0:00:12]} 41. Bxe7 {[%clk 0:00:03]}  Qh5+ {[%clk 0:00:12]} 42. Kf4 {[%clk 0:00:03]}  Qf5+ {[%clk 0:00:13]} 43. Ke3 {[%clk 0:00:04]}  Re1+ {[%clk 0:00:12]} 44. Kd4 {[%clk 0:00:05]}  Qe4+ {[%clk 0:00:12]} 45. Kc5 {[%clk 0:00:06]}  Rc1+ {[%clk 0:00:12]} 46. Kb6 {[%clk 0:00:06]}  Qc6+ {[%clk 0:00:12]} 47. Ka5 {[%clk 0:00:07]}  Ra1+ {[%clk 0:00:12]} 48. Kxb4 {[%clk 0:00:07]}  Ra4+ {[%clk 0:00:12]} 49. Kb3 {[%clk 0:00:08]}  Qc4# {[%clk 0:00:13]} 0-1


[Site "https://www.chess.com"]

[Event "Titled Tuesday Blitz June 20 Early 2023"]
[White "Shukhman, Anna"]
[Black "Moroni, Luca Jr"]
[WhiteFideId "54180058"]
[BlackFideId "865834"]
[WhiteElo "2235"]
[BlackElo "2569"]
[Result "0-1"]
[Round "2"]
[TimeControl "180+2"]
[Date "2023.06.20"]
[WhiteClock "0:01:12"]
[BlackClock "0:01:39"]
[Board "42"]

1. e4 {[%clk 0:03:00]}  g6 {[%clk 0:03:00]} 2. d4 {[%clk 0:03:00]}  Bg7 {[%clk 0:03:00]} 3. Nf3 {[%clk 0:02:59]}  d6 {[%clk 0:03:00]} 4. Nc3 {[%clk 0:02:58]}  Nf6 {[%clk 0:03:00]} 5. h3 {[%clk 0:02:57]}  O-O {[%clk 0:02:59]} 6. Be3 {[%clk 0:02:58]}  d5 {[%clk 0:02:54]} 7. e5 {[%clk 0:02:57]}  Ne4 {[%clk 0:02:54]} 8. Bd3 {[%clk 0:02:56]}  Bf5 {[%clk 0:02:51]} 9. O-O {[%clk 0:02:55]}  c5 {[%clk 0:02:51]} 10. Nh4 {[%clk 0:02:50]}  e6 {[%clk 0:02:43]} 11. Nxf5 {[%clk 0:02:49]}  gxf5 {[%clk 0:02:44]} 12. Nb1 {[%clk 0:02:28]}  cxd4 {[%clk 0:02:42]} 13. Bxd4 {[%clk 0:02:27]}  Nc6 {[%clk 0:02:42]} 14. c3 {[%clk 0:02:15]}  Nxe5 {[%clk 0:02:40]} 15. f3 {[%clk 0:02:14]}  Ng3 {[%clk 0:02:28]} 16. Re1 {[%clk 0:02:11]}  Nxd3 {[%clk 0:02:25]} 17. Qxd3 {[%clk 0:02:10]}  Nh5 {[%clk 0:02:18]} 18. Nd2 {[%clk 0:02:06]}  Nf4 {[%clk 0:02:10]} 19. Qf1 {[%clk 0:01:55]}  Qg5 {[%clk 0:02:03]} 20. Kh1 {[%clk 0:01:54]}  Bxd4 {[%clk 0:02:02]} 21. cxd4 {[%clk 0:01:53]}  Kh8 {[%clk 0:02:03]} 22. Nb3 {[%clk 0:01:46]}  Rg8 {[%clk 0:02:02]} 23. Rac1 {[%clk 0:01:40]}  Nxg2 {[%clk 0:02:01]} 24. Re2 {[%clk 0:01:40]}  Nf4 {[%clk 0:02:00]} 25. Rh2 {[%clk 0:01:40]}  Rg7 {[%clk 0:01:56]} 26. h4 {[%clk 0:01:37]}  Qg3 {[%clk 0:01:55]} 27. Qf2 {[%clk 0:01:36]}  Qxf2 {[%clk 0:01:53]} 28. Rxf2 {[%clk 0:01:36]}  Nd3 {[%clk 0:01:54]} 29. Rfc2 {[%clk 0:01:34]}  Nxc1 {[%clk 0:01:54]} 30. Rxc1 {[%clk 0:01:35]}  b6 {[%clk 0:01:54]} 31. Nd2 {[%clk 0:01:32]}  Rag8 {[%clk 0:01:52]} 32. Nf1 {[%clk 0:01:31]}  Rg1+ {[%clk 0:01:51]} 33. Kh2 {[%clk 0:01:31]}  R8g2+ {[%clk 0:01:51]} 34. Kh3 {[%clk 0:01:31]}  Kg7 {[%clk 0:01:50]} 35. Rc7 {[%clk 0:01:20]}  f4 {[%clk 0:01:46]} 36. h5 {[%clk 0:01:16]}  Rg5 {[%clk 0:01:44]} 37. h6+ {[%clk 0:01:12]}  Kg6 {[%clk 0:01:39]} 0-1


[Site "https://www.chess.com"]

[Event "Titled Tuesday Blitz June 20 Early 2023"]
[White "Pichot, Alan"]
[Black "MKlose11"]
[WhiteFideId "110973"]
[WhiteElo "2573"]
[BlackElo "2560"]
[Result "1/2-1/2"]
[Round "2"]
[TimeControl "180+2"]
[Date "2023.06.20"]
[WhiteClock "0:00:06"]
[BlackClock "0:00:03"]
[Board "44"]

1. Nf3 {[%clk 0:02:52]}  Nf6 {[%clk 0:02:59]} 2. c4 {[%clk 0:02:49]}  c5 {[%clk 0:02:59]} 3. b3 {[%clk 0:02:49]}  Nc6 {[%clk 0:02:58]} 4. Bb2 {[%clk 0:02:45]}  e6 {[%clk 0:02:56]} 5. g3 {[%clk 0:02:44]}  Be7 {[%clk 0:02:56]} 6. Bg2 {[%clk 0:02:44]}  d5 {[%clk 0:02:56]} 7. cxd5 {[%clk 0:02:43]}  exd5 {[%clk 0:02:55]} 8. O-O {[%clk 0:02:44]}  d4 {[%clk 0:02:48]} 9. Na3 {[%clk 0:02:44]}  O-O {[%clk 0:02:47]} 10. Nc4 {[%clk 0:02:44]}  Be6 {[%clk 0:02:45]} 11. Rc1 {[%clk 0:02:43]}  Rc8 {[%clk 0:02:43]} 12. e3 {[%clk 0:02:43]}  Nb4 {[%clk 0:02:36]} 13. exd4 {[%clk 0:02:31]}  Nd3 {[%clk 0:02:35]} 14. Rb1 {[%clk 0:02:19]}  Nxb2 {[%clk 0:02:31]} 15. Rxb2 {[%clk 0:02:19]}  cxd4 {[%clk 0:02:27]} 16. Nfe5 {[%clk 0:02:19]}  Bd5 {[%clk 0:02:25]} 17. Bxd5 {[%clk 0:02:16]}  Qxd5 {[%clk 0:02:25]} 18. Qf3 {[%clk 0:02:16]}  b5 {[%clk 0:02:17]} 19. Qxd5 {[%clk 0:02:15]}  Nxd5 {[%clk 0:02:18]} 20. Na5 {[%clk 0:02:16]}  Ba3 {[%clk 0:02:16]} 21. Rbb1 {[%clk 0:02:10]}  Rc2 {[%clk 0:02:16]} 22. Nac6 {[%clk 0:01:59]}  Rxd2 {[%clk 0:02:00]} 23. Nf3 {[%clk 0:01:58]}  Rxa2 {[%clk 0:01:56]} 24. Nfxd4 {[%clk 0:01:59]}  g6 {[%clk 0:01:30]} 25. Nxb5 {[%clk 0:01:46]}  Bc5 {[%clk 0:01:27]} 26. Rbd1 {[%clk 0:01:32]}  Nf6 {[%clk 0:01:15]} 27. b4 {[%clk 0:01:14]}  Bb6 {[%clk 0:01:15]} 28. Nd6 {[%clk 0:01:15]}  Ng4 {[%clk 0:01:12]} 29. Ne4 {[%clk 0:01:05]}  Re8 {[%clk 0:00:57]} 30. Rfe1 {[%clk 0:00:44]}  Kg7 {[%clk 0:00:50]} 31. Nc5 {[%clk 0:00:40]}  Rxe1+ {[%clk 0:00:46]} 32. Rxe1 {[%clk 0:00:41]}  Nxf2 {[%clk 0:00:46]} 33. Re7 {[%clk 0:00:40]}  Nd3 {[%clk 0:00:41]} 34. Ne5 {[%clk 0:00:38]}  Nxb4 {[%clk 0:00:30]} 35. Nd7 {[%clk 0:00:21]}  Rc2 {[%clk 0:00:26]} 36. Nxb6 {[%clk 0:00:21]}  axb6 {[%clk 0:00:23]} 37. Na4 {[%clk 0:00:13]}  b5 {[%clk 0:00:21]} 38. Nb6 {[%clk 0:00:13]}  Nc6 {[%clk 0:00:20]} 39. Rb7 {[%clk 0:00:12]}  Nd4 {[%clk 0:00:20]} 40. Nd5 {[%clk 0:00:13]}  Nf3+ {[%clk 0:00:19]} 41. Kf1 {[%clk 0:00:13]}  Rb2 {[%clk 0:00:18]} 42. h4 {[%clk 0:00:13]}  h5 {[%clk 0:00:18]} 43. Nf4 {[%clk 0:00:11]}  b4 {[%clk 0:00:18]} 44. Nd3 {[%clk 0:00:11]}  Rb1+ {[%clk 0:00:15]} 45. Ke2 {[%clk 0:00:11]}  Nd4+ {[%clk 0:00:15]} 46. Ke3 {[%clk 0:00:11]}  Nf5+ {[%clk 0:00:15]} 47. Kf2 {[%clk 0:00:12]}  b3 {[%clk 0:00:15]} 48. Nc5 {[%clk 0:00:11]}  b2 {[%clk 0:00:13]} 49. Nd3 {[%clk 0:00:10]}  Rd1 {[%clk 0:00:12]} 50. Nxb2 {[%clk 0:00:10]}  Rb1 {[%clk 0:00:12]} 51. Rb6 {[%clk 0:00:08]}  Ne7 {[%clk 0:00:09]} 52. Nc4 {[%clk 0:00:08]}  Rxb6 {[%clk 0:00:08]} 53. Nxb6 {[%clk 0:00:09]}  Kf6 {[%clk 0:00:09]} 54. Kf3 {[%clk 0:00:08]}  Kf5 {[%clk 0:00:09]} 55. Nc4 {[%clk 0:00:08]}  Nc6 {[%clk 0:00:09]} 56. Nd6+ {[%clk 0:00:08]}  Ke6 {[%clk 0:00:09]} 57. Ne4 {[%clk 0:00:08]}  Ne5+ {[%clk 0:00:09]} 58. Kf4 {[%clk 0:00:08]}  f6 {[%clk 0:00:09]} 59. Nc5+ {[%clk 0:00:08]}  Kd5 {[%clk 0:00:09]} 60. Ne4 {[%clk 0:00:09]}  Nd3+ {[%clk 0:00:09]} 61. Ke3 {[%clk 0:00:10]}  f5 {[%clk 0:00:07]} 62. Nf6+ {[%clk 0:00:10]}  Ke6 {[%clk 0:00:07]} 63. Nxh5 {[%clk 0:00:08]}  Ne5 {[%clk 0:00:03]} 64. Nf4+ {[%clk 0:00:08]}  Kf6 {[%clk 0:00:03]} 65. Kd4 {[%clk 0:00:08]}  Nf3+ {[%clk 0:00:03]} 66. Kd5 {[%clk 0:00:09]}  g5 {[%clk 0:00:02]} 67. hxg5+ {[%clk 0:00:05]}  Kxg5 {[%clk 0:00:03]} 68. Ke6 {[%clk 0:00:06]}  Kg4 {[%clk 0:00:03]} 69. Kf6 {[%clk 0:00:06]}  Kxg3 {[%clk 0:00:03]} 70. Kxf5 {[%clk 0:00:06]} 1/2-1/2


[Site "https://www.chess.com"]

[Event "Titled Tuesday Blitz June 20 Early 2023"]
[White "Trifan, Andrei Ioan"]
[Black "Bacrot, Etienne"]
[WhiteFideId "12967068"]
[BlackFideId "605506"]
[WhiteElo "2208"]
[BlackElo "2672"]
[Result "0-1"]
[Round "2"]
[TimeControl "180+2"]
[Date "2023.06.20"]
[WhiteClock "0:00:16"]
[BlackClock "0:00:07"]
[Board "45"]

1. e4 {[%clk 0:02:59]}  c5 {[%clk 0:02:59]} 2. Nf3 {[%clk 0:02:57]}  d6 {[%clk 0:03:00]} 3. c4 {[%clk 0:02:53]}  e5 {[%clk 0:02:59]} 4. Nc3 {[%clk 0:02:53]}  Nc6 {[%clk 0:02:59]} 5. d3 {[%clk 0:02:50]}  g6 {[%clk 0:02:59]} 6. g3 {[%clk 0:02:50]}  Bg7 {[%clk 0:02:59]} 7. Bg2 {[%clk 0:02:50]}  Nge7 {[%clk 0:03:00]} 8. h3 {[%clk 0:02:46]}  O-O {[%clk 0:02:59]} 9. Be3 {[%clk 0:02:42]}  f5 {[%clk 0:02:56]} 10. Qd2 {[%clk 0:02:41]}  Nd4 {[%clk 0:02:50]} 11. exf5 {[%clk 0:02:36]}  Nexf5 {[%clk 0:02:45]} 12. Bxd4 {[%clk 0:02:33]}  exd4 {[%clk 0:02:42]} 13. Ne4 {[%clk 0:02:29]}  Bh6 {[%clk 0:02:26]} 14. Nfg5 {[%clk 0:02:20]}  Ne3 {[%clk 0:02:13]} 15. f4 {[%clk 0:02:00]}  Bxg5 {[%clk 0:01:43]} 16. Nxg5 {[%clk 0:01:55]}  Qe7 {[%clk 0:01:39]} 17. Be4 {[%clk 0:01:37]}  Bf5 {[%clk 0:01:32]} 18. Kf2 {[%clk 0:01:19]}  Rae8 {[%clk 0:01:10]} 19. Rhe1 {[%clk 0:01:12]}  Bxe4 {[%clk 0:00:53]} 20. Nxe4 {[%clk 0:01:07]}  g5 {[%clk 0:00:53]} 21. Kg1 {[%clk 0:01:03]}  gxf4 {[%clk 0:00:52]} 22. gxf4 {[%clk 0:01:01]}  Rxf4 {[%clk 0:00:51]} 23. Rxe3 {[%clk 0:01:00]}  dxe3 {[%clk 0:00:50]} 24. Qxe3 {[%clk 0:01:01]}  Ref8 {[%clk 0:00:23]} 25. Kh1 {[%clk 0:00:44]}  Rf1+ {[%clk 0:00:23]} 26. Rxf1 {[%clk 0:00:45]}  Rxf1+ {[%clk 0:00:23]} 27. Kg2 {[%clk 0:00:45]}  Rf8 {[%clk 0:00:23]} 28. Qh6 {[%clk 0:00:19]}  Qg7+ {[%clk 0:00:22]} 29. Qxg7+ {[%clk 0:00:19]}  Kxg7 {[%clk 0:00:23]} 30. Nxd6 {[%clk 0:00:19]}  b6 {[%clk 0:00:22]} 31. Ne4 {[%clk 0:00:19]}  Kg6 {[%clk 0:00:22]} 32. Kg3 {[%clk 0:00:19]}  Rf1 {[%clk 0:00:18]} 33. Nc3 {[%clk 0:00:18]}  Kf5 {[%clk 0:00:17]} 34. Nb5 {[%clk 0:00:18]}  a6 {[%clk 0:00:14]} 35. Nd6+ {[%clk 0:00:19]}  Ke5 {[%clk 0:00:12]} 36. Nc8 {[%clk 0:00:20]}  Rg1+ {[%clk 0:00:11]} 37. Kf2 {[%clk 0:00:20]}  Rg6 {[%clk 0:00:11]} 38. Ne7 {[%clk 0:00:20]}  Rh6 {[%clk 0:00:10]} 39. Kg3 {[%clk 0:00:18]}  Re6 {[%clk 0:00:07]} 40. Nd5 {[%clk 0:00:19]}  Kd4 {[%clk 0:00:07]} 41. Kg4 {[%clk 0:00:19]}  Rg6+ {[%clk 0:00:07]} 42. Kf5 {[%clk 0:00:19]}  Rg3 {[%clk 0:00:06]} 43. Nxb6 {[%clk 0:00:19]}  Rxh3 {[%clk 0:00:06]} 44. a3 {[%clk 0:00:19]}  h5 {[%clk 0:00:06]} 45. b4 {[%clk 0:00:19]}  Rxd3 {[%clk 0:00:05]} 46. b5 {[%clk 0:00:17]}  axb5 {[%clk 0:00:06]} 47. cxb5 {[%clk 0:00:18]}  h4 {[%clk 0:00:06]} 48. Kg4 {[%clk 0:00:16]}  h3 {[%clk 0:00:07]} 0-1


[Site "https://www.chess.com"]

[Event "Titled Tuesday Blitz June 20 Early 2023"]
[White "Ilamparthi A R"]
[Black "Pham, Khoi"]
[WhiteFideId "45015775"]
[BlackFideId "1054988"]
[WhiteElo "2348"]
[BlackElo "2555"]
[Result "1-0"]
[Round "2"]
[TimeControl "180+2"]
[Date "2023.06.20"]
[WhiteClock "0:01:37"]
[BlackClock "0:01:16"]
[Board "49"]

1. e4 {[%clk 0:03:00]}  c6 {[%clk 0:02:58]} 2. d3 {[%clk 0:03:00]}  d5 {[%clk 0:02:58]} 3. Nd2 {[%clk 0:03:01]}  Nf6 {[%clk 0:02:58]} 4. Ngf3 {[%clk 0:02:58]}  e6 {[%clk 0:02:57]} 5. g3 {[%clk 0:02:57]}  Be7 {[%clk 0:02:53]} 6. Bg2 {[%clk 0:02:58]}  O-O {[%clk 0:02:52]} 7. O-O {[%clk 0:02:58]}  b6 {[%clk 0:02:51]} 8. Re1 {[%clk 0:02:57]}  a5 {[%clk 0:02:50]} 9. e5 {[%clk 0:02:54]}  Nfd7 {[%clk 0:02:50]} 10. Nf1 {[%clk 0:02:54]}  a4 {[%clk 0:02:50]} 11. a3 {[%clk 0:02:53]}  c5 {[%clk 0:02:49]} 12. h4 {[%clk 0:02:52]}  b5 {[%clk 0:02:48]} 13. Bf4 {[%clk 0:02:52]}  b4 {[%clk 0:02:47]} 14. h5 {[%clk 0:02:51]}  Nc6 {[%clk 0:02:40]} 15. h6 {[%clk 0:02:50]}  g6 {[%clk 0:02:40]} 16. N1h2 {[%clk 0:02:50]}  Nd4 {[%clk 0:02:30]} 17. Nxd4 {[%clk 0:02:48]}  cxd4 {[%clk 0:02:31]} 18. Nf3 {[%clk 0:02:47]}  Qb6 {[%clk 0:02:30]} 19. Qd2 {[%clk 0:02:41]}  Ba6 {[%clk 0:02:26]} 20. Bg5 {[%clk 0:02:38]}  Bxg5 {[%clk 0:02:21]} 21. Qxg5 {[%clk 0:02:38]}  b3 {[%clk 0:02:08]} 22. cxb3 {[%clk 0:02:26]}  axb3 {[%clk 0:02:03]} 23. Rad1 {[%clk 0:02:12]}  f6 {[%clk 0:02:00]} 24. exf6 {[%clk 0:02:09]}  Rxf6 {[%clk 0:02:01]} 25. Ne5 {[%clk 0:02:08]}  Rf7 {[%clk 0:01:32]} 26. Nxf7 {[%clk 0:02:03]}  Kxf7 {[%clk 0:01:33]} 27. Rxe6 {[%clk 0:01:47]}  Qxe6 {[%clk 0:01:16]} 28. Bxd5 {[%clk 0:01:46]}  Re8 {[%clk 0:01:16]} 29. Bxe6+ {[%clk 0:01:37]} 1-0


[Site "https://www.chess.com"]

[Event "Titled Tuesday Blitz June 20 Early 2023"]
[White "Chigaev, Maksim"]
[Black "Krutko, Anatoly"]
[WhiteFideId "4108116"]
[BlackFideId "4185862"]
[WhiteElo "2561"]
[BlackElo "2378"]
[Result "1-0"]
[Round "2"]
[TimeControl "180+2"]
[Date "2023.06.20"]
[WhiteClock "0:00:09"]
[BlackClock "0:00:03"]
[Board "51"]

1. e4 {[%clk 0:03:00]}  e5 {[%clk 0:02:55]} 2. Nf3 {[%clk 0:03:00]}  Nc6 {[%clk 0:02:56]} 3. Bb5 {[%clk 0:03:00]}  a6 {[%clk 0:02:56]} 4. Ba4 {[%clk 0:03:01]}  Nf6 {[%clk 0:02:56]} 5. O-O {[%clk 0:03:01]}  b5 {[%clk 0:02:53]} 6. Bb3 {[%clk 0:03:01]}  Bc5 {[%clk 0:02:54]} 7. c3 {[%clk 0:02:59]}  d6 {[%clk 0:02:54]} 8. d4 {[%clk 0:02:55]}  Bb6 {[%clk 0:02:54]} 9. Be3 {[%clk 0:02:52]}  O-O {[%clk 0:02:47]} 10. Nbd2 {[%clk 0:02:53]}  Bb7 {[%clk 0:02:44]} 11. Re1 {[%clk 0:02:53]}  h6 {[%clk 0:02:35]} 12. h3 {[%clk 0:02:42]}  Re8 {[%clk 0:02:34]} 13. d5 {[%clk 0:02:15]}  Ne7 {[%clk 0:02:25]} 14. Bxb6 {[%clk 0:02:06]}  cxb6 {[%clk 0:02:25]} 15. a4 {[%clk 0:02:05]}  bxa4 {[%clk 0:02:23]} 16. Bxa4 {[%clk 0:02:06]}  b5 {[%clk 0:02:24]} 17. Bc2 {[%clk 0:02:06]}  Ng6 {[%clk 0:02:24]} 18. Nb3 {[%clk 0:02:06]}  Nh5 {[%clk 0:02:16]} 19. Na5 {[%clk 0:02:05]}  Bc8 {[%clk 0:02:16]} 20. Bd3 {[%clk 0:01:37]}  Qf6 {[%clk 0:02:01]} 21. Bf1 {[%clk 0:01:36]}  Nhf4 {[%clk 0:01:56]} 22. b3 {[%clk 0:01:27]}  Nh4 {[%clk 0:01:38]} 23. Nxh4 {[%clk 0:01:23]}  Qxh4 {[%clk 0:01:38]} 24. Qf3 {[%clk 0:01:21]}  Qg5 {[%clk 0:01:35]} 25. Qg3 {[%clk 0:01:20]}  Qf6 {[%clk 0:01:32]} 26. c4 {[%clk 0:01:19]}  bxc4 {[%clk 0:01:22]} 27. bxc4 {[%clk 0:01:19]}  Bd7 {[%clk 0:01:18]} 28. Qa3 {[%clk 0:01:19]}  Qg5 {[%clk 0:01:13]} 29. Kh2 {[%clk 0:01:18]}  Qg6 {[%clk 0:00:31]} 30. g3 {[%clk 0:01:04]}  Nh5 {[%clk 0:00:26]} 31. Nb7 {[%clk 0:01:05]}  f5 {[%clk 0:00:25]} 32. Nxd6 {[%clk 0:01:01]}  Rf8 {[%clk 0:00:24]} 33. exf5 {[%clk 0:00:50]}  Bxf5 {[%clk 0:00:24]} 34. Nxf5 {[%clk 0:00:48]}  Rxf5 {[%clk 0:00:24]} 35. Ra2 {[%clk 0:00:49]}  Raf8 {[%clk 0:00:24]} 36. Ree2 {[%clk 0:00:37]}  Rf3 {[%clk 0:00:23]} 37. Re3 {[%clk 0:00:22]}  Rxf2+ {[%clk 0:00:19]} 38. Rxf2 {[%clk 0:00:21]}  Rxf2+ {[%clk 0:00:20]} 39. Kg1 {[%clk 0:00:22]}  Qf6 {[%clk 0:00:08]} 40. Bg2 {[%clk 0:00:15]}  Rd2 {[%clk 0:00:05]} 41. Rf3 {[%clk 0:00:15]}  Qg5 {[%clk 0:00:05]} 42. Qf8+ {[%clk 0:00:06]}  Kh7 {[%clk 0:00:05]} 43. Qf5+ {[%clk 0:00:07]}  Qxf5 {[%clk 0:00:05]} 44. Rxf5 {[%clk 0:00:08]}  Nxg3 {[%clk 0:00:06]} 45. Rxe5 {[%clk 0:00:08]}  Ne2+ {[%clk 0:00:06]} 46. Kh1 {[%clk 0:00:06]}  Ng3+ {[%clk 0:00:06]} 47. Kh2 {[%clk 0:00:06]}  Nf1+ {[%clk 0:00:06]} 48. Kg1 {[%clk 0:00:07]}  Ng3 {[%clk 0:00:06]} 49. c5 {[%clk 0:00:07]}  Ne2+ {[%clk 0:00:06]} 50. Kh1 {[%clk 0:00:08]}  Nf4 {[%clk 0:00:06]} 51. Be4+ {[%clk 0:00:07]}  g6 {[%clk 0:00:06]} 52. c6 {[%clk 0:00:07]}  Nxh3 {[%clk 0:00:04]} 53. Re7+ {[%clk 0:00:07]}  Kg8 {[%clk 0:00:04]} 54. c7 {[%clk 0:00:08]}  Nf2+ {[%clk 0:00:04]} 55. Kg1 {[%clk 0:00:08]}  Nh3+ {[%clk 0:00:04]} 56. Kf1 {[%clk 0:00:08]}  Rf2+ {[%clk 0:00:04]} 57. Ke1 {[%clk 0:00:08]}  Rf8 {[%clk 0:00:05]} 58. d6 {[%clk 0:00:08]}  Ng5 {[%clk 0:00:05]} 59. Bd5+ {[%clk 0:00:08]}  Kh8 {[%clk 0:00:03]} 60. d7 {[%clk 0:00:09]} 1-0


[Site "https://www.chess.com"]